[Event "Titled Tuesday Blitz November 01 Early 2022"]
[White "Orzech, Dominik"]
[Black "Osinovsky, Stepan"]
[WhiteFideId "1115065"]
[BlackFideId "4157354"]
[WhiteElo "2272"]
[BlackElo "2222"]
[Result "0-1"]
[Round "07"]
[TimeControl "180+1"]
[Date "2022.11.02"]
[WhiteClock "0:00:29"]
[BlackClock "0:00:14"]

1. d4 {[%clk 0:02:57]}  Nf6 {[%clk 0:03:00]} 2. c4 {[%clk 0:02:57]}  g6 {[%clk 0:03:00]} 3. g3 {[%clk 0:02:56]}  Bg7 {[%clk 0:03:01]} 4. Bg2 {[%clk 0:02:55]}  O-O {[%clk 0:03:02]} 5. Nc3 {[%clk 0:02:55]}  d6 {[%clk 0:03:03]} 6. Nf3 {[%clk 0:02:55]}  Nbd7 {[%clk 0:03:04]} 7. O-O {[%clk 0:02:55]}  e5 {[%clk 0:03:05]} 8. e4 {[%clk 0:02:54]}  Re8 {[%clk 0:03:04]} 9. h3 {[%clk 0:02:53]}  exd4 {[%clk 0:03:04]} 10. Nxd4 {[%clk 0:02:52]}  Nc5 {[%clk 0:03:04]} 11. Re1 {[%clk 0:02:50]}  a5 {[%clk 0:03:03]} 12. Qc2 {[%clk 0:02:50]}  Nfd7 {[%clk 0:03:03]} 13. Be3 {[%clk 0:02:49]}  Ne5 {[%clk 0:03:03]} 14. Bf1 {[%clk 0:02:41]}  Bd7 {[%clk 0:02:37]} 15. f4 {[%clk 0:02:37]}  Nc6 {[%clk 0:02:34]} 16. Rad1 {[%clk 0:02:36]}  Nxd4 {[%clk 0:02:31]} 17. Bxd4 {[%clk 0:02:37]}  Bxd4+ {[%clk 0:02:30]} 18. Rxd4 {[%clk 0:02:37]}  Qf6 {[%clk 0:02:29]} 19. Qf2 {[%clk 0:02:31]}  Bc6 {[%clk 0:02:27]} 20. Bg2 {[%clk 0:02:29]}  Re7 {[%clk 0:02:23]} 21. b3 {[%clk 0:02:15]}  Rae8 {[%clk 0:02:21]} 22. Kh2 {[%clk 0:02:11]}  Kg7 {[%clk 0:02:13]} 23. h4 {[%clk 0:01:56]}  h6 {[%clk 0:02:11]} 24. Kg1 {[%clk 0:01:53]}  Kh7 {[%clk 0:01:48]} 25. g4 {[%clk 0:01:51]}  Ne6 {[%clk 0:01:44]} 26. Rd3 {[%clk 0:01:44]}  Nxf4 {[%clk 0:01:42]} 27. g5 {[%clk 0:01:33]}  hxg5 {[%clk 0:01:41]} 28. hxg5 {[%clk 0:01:34]}  Qxg5 {[%clk 0:01:38]} 29. Rg3 {[%clk 0:01:33]}  Qe5 {[%clk 0:01:30]} 30. Rf1 {[%clk 0:01:25]}  g5 {[%clk 0:01:24]} 31. Bh3 {[%clk 0:01:20]}  Nxh3+ {[%clk 0:01:06]} 32. Rxh3+ {[%clk 0:01:18]}  Kg6 {[%clk 0:01:06]} 33. Nd5 {[%clk 0:01:15]}  Bxd5 {[%clk 0:01:00]} 34. cxd5 {[%clk 0:01:11]}  g4 {[%clk 0:00:34]} 35. Rh4 {[%clk 0:01:05]}  Qg5 {[%clk 0:00:32]} 36. Qh2 {[%clk 0:00:43]}  Rxe4 {[%clk 0:00:21]} 37. Rh7 {[%clk 0:00:42]}  Re2 {[%clk 0:00:19]} 38. Rfxf7 {[%clk 0:00:36]}  Re1+ {[%clk 0:00:17]} 39. Rf1 {[%clk 0:00:35]}  Rxf1+ {[%clk 0:00:16]} 40. Kxf1 {[%clk 0:00:35]}  Qc1+ {[%clk 0:00:16]} 41. Kf2 {[%clk 0:00:34]}  Qd2+ {[%clk 0:00:15]} 42. Kg3 {[%clk 0:00:34]}  Qd3+ {[%clk 0:00:13]} 43. Kxg4 {[%clk 0:00:32]}  Re4+ {[%clk 0:00:13]} 44. Qf4 {[%clk 0:00:29]}  Rxf4+ {[%clk 0:00:13]} 45. Kxf4 {[%clk 0:00:30]}  Qd4+ {[%clk 0:00:14]} 46. Kf3 {[%clk 0:00:29]}  Kxh7 {[%clk 0:00:14]} 0-1


[Site "https://www.chess.com"]

[Event "Titled Tuesday Blitz November 01 Early 2022"]
[White "Ovchinnikov, Vsevolod"]
[Black "Xiong, Jeffery"]
[WhiteFideId "24176842"]
[BlackFideId "2047640"]
[WhiteElo "2376"]
[BlackElo "2725"]
[Result "0-1"]
[Round "07"]
[TimeControl "180+1"]
[Date "2022.11.01"]
[WhiteClock "0:00:04"]
[BlackClock "0:00:25"]

1. Nf3 {[%clk 0:02:58]}  c5 {[%clk 0:02:59]} 2. c4 {[%clk 0:02:58]}  Nc6 {[%clk 0:02:54]} 3. g3 {[%clk 0:02:59]}  Nf6 {[%clk 0:02:51]} 4. Bg2 {[%clk 0:02:58]}  d5 {[%clk 0:02:51]} 5. cxd5 {[%clk 0:02:58]}  Nxd5 {[%clk 0:02:52]} 6. O-O {[%clk 0:02:55]}  e5 {[%clk 0:02:51]} 7. d3 {[%clk 0:02:55]}  Be7 {[%clk 0:02:50]} 8. Nc3 {[%clk 0:02:55]}  Be6 {[%clk 0:02:51]} 9. Bd2 {[%clk 0:02:49]}  O-O {[%clk 0:02:51]} 10. a3 {[%clk 0:02:49]}  a5 {[%clk 0:02:46]} 11. Nxd5 {[%clk 0:02:48]}  Bxd5 {[%clk 0:02:47]} 12. Bc3 {[%clk 0:02:48]}  Qd6 {[%clk 0:02:46]} 13. Nd2 {[%clk 0:02:43]}  Bxg2 {[%clk 0:02:47]} 14. Kxg2 {[%clk 0:02:43]}  f5 {[%clk 0:02:44]} 15. Qb3+ {[%clk 0:02:27]}  Rf7 {[%clk 0:02:41]} 16. Qxb7 {[%clk 0:02:00]}  Ra7 {[%clk 0:02:21]} 17. Qb3 {[%clk 0:01:54]}  a4 {[%clk 0:02:21]} 18. Qc4 {[%clk 0:01:54]}  Bf8 {[%clk 0:02:17]} 19. Rac1 {[%clk 0:01:53]}  Kh8 {[%clk 0:02:16]} 20. Nf3 {[%clk 0:01:48]}  h6 {[%clk 0:02:14]} 21. Bd2 {[%clk 0:01:40]}  Nd4 {[%clk 0:02:12]} 22. Nxd4 {[%clk 0:01:35]}  exd4 {[%clk 0:02:11]} 23. e3 {[%clk 0:01:27]}  Qc6+ {[%clk 0:02:07]} 24. Kg1 {[%clk 0:01:22]}  dxe3 {[%clk 0:01:59]} 25. Bxe3 {[%clk 0:01:23]}  Qf3 {[%clk 0:01:41]} 26. Rc2 {[%clk 0:00:59]}  Rad7 {[%clk 0:01:28]} 27. Rd2 {[%clk 0:00:40]}  Rd5 {[%clk 0:01:24]} 28. Qf4 {[%clk 0:00:33]}  Qh5 {[%clk 0:01:24]} 29. Qxa4 {[%clk 0:00:31]}  f4 {[%clk 0:01:23]} 30. Bxf4 {[%clk 0:00:27]}  Rd4 {[%clk 0:01:23]} 31. Qc6 {[%clk 0:00:25]}  Rdxf4 {[%clk 0:01:23]} 32. gxf4 {[%clk 0:00:24]}  Rxf4 {[%clk 0:01:24]} 33. f3 {[%clk 0:00:21]}  Rf6 {[%clk 0:01:21]} 34. Qe4 {[%clk 0:00:21]}  Bd6 {[%clk 0:01:21]} 35. Rg2 {[%clk 0:00:21]}  Be5 {[%clk 0:01:15]} 36. Kh1 {[%clk 0:00:17]}  Rf4 {[%clk 0:01:11]} 37. Qa8+ {[%clk 0:00:17]}  Kh7 {[%clk 0:01:12]} 38. Rff2 {[%clk 0:00:05]}  Rd4 {[%clk 0:01:02]} 39. Qa6 {[%clk 0:00:04]}  Qf5 {[%clk 0:01:01]} 40. Rf1 {[%clk 0:00:02]}  Rxd3 {[%clk 0:01:00]} 41. f4 {[%clk 0:00:02]}  Bd4 {[%clk 0:00:50]} 42. Qc4 {[%clk 0:00:02]}  Kh8 {[%clk 0:00:41]} 43. Qc2 {[%clk 0:00:02]}  Qe4 {[%clk 0:00:36]} 44. Qe2 {[%clk 0:00:02]}  Re3 {[%clk 0:00:36]} 45. Qg4 {[%clk 0:00:03]}  Re1 {[%clk 0:00:34]} 46. Rxe1 {[%clk 0:00:02]}  Qxe1+ {[%clk 0:00:35]} 47. Rg1 {[%clk 0:00:03]}  Bxg1 {[%clk 0:00:34]} 48. Qxg1 {[%clk 0:00:03]}  Qe4+ {[%clk 0:00:35]} 49. Qg2 {[%clk 0:00:04]}  Qb1+ {[%clk 0:00:36]} 50. Qg1 {[%clk 0:00:04]}  Qe4+ {[%clk 0:00:35]} 51. Qg2 {[%clk 0:00:04]}  Qxf4 {[%clk 0:00:36]} 52. h3 {[%clk 0:00:04]}  c4 {[%clk 0:00:35]} 53. Qe2 {[%clk 0:00:04]}  Kh7 {[%clk 0:00:29]} 54. Qc2+ {[%clk 0:00:04]}  g6 {[%clk 0:00:29]} 55. Kg2 {[%clk 0:00:04]}  h5 {[%clk 0:00:29]} 56. Qc3 {[%clk 0:00:04]}  h4 {[%clk 0:00:29]} 57. b3 {[%clk 0:00:04]}  Qe4+ {[%clk 0:00:28]} 58. Kh2 {[%clk 0:00:04]}  Qe2+ {[%clk 0:00:27]} 59. Kg1 {[%clk 0:00:04]}  Qd1+ {[%clk 0:00:28]} 60. Kf2 {[%clk 0:00:04]}  Qxb3 {[%clk 0:00:23]} 61. Qe5 {[%clk 0:00:03]}  Qg3+ {[%clk 0:00:22]} 62. Qxg3 {[%clk 0:00:03]}  hxg3+ {[%clk 0:00:23]} 63. Kxg3 {[%clk 0:00:03]}  c3 {[%clk 0:00:24]} 64. a4 {[%clk 0:00:04]}  c2 {[%clk 0:00:25]} 0-1


[Site "https://www.chess.com"]

[Event "Titled Tuesday Blitz November 01 Early 2022"]
[White "Pakleza, Zbigniew"]
[Black "Postnikov, Daniil"]
[WhiteFideId "1119290"]
[BlackFideId "4166329"]
[WhiteElo "2411"]
[BlackElo "2261"]
[Result "1-0"]
[Round "07"]
[TimeControl "180+1"]
[Date "2022.11.02"]
[WhiteClock "0:00:06"]
[BlackClock "0:00:04"]

1. d4 {[%clk 0:03:00]}  Nf6 {[%clk 0:02:56]} 2. Nf3 {[%clk 0:03:01]}  g6 {[%clk 0:02:57]} 3. Bf4 {[%clk 0:03:01]}  Bg7 {[%clk 0:02:57]} 4. e3 {[%clk 0:03:01]}  O-O {[%clk 0:02:58]} 5. Be2 {[%clk 0:03:02]}  d6 {[%clk 0:02:58]} 6. h3 {[%clk 0:03:02]}  c5 {[%clk 0:02:59]} 7. c3 {[%clk 0:03:02]}  Qb6 {[%clk 0:02:59]} 8. Qb3 {[%clk 0:03:02]}  cxd4 {[%clk 0:02:51]} 9. Qxb6 {[%clk 0:02:59]}  axb6 {[%clk 0:02:50]} 10. cxd4 {[%clk 0:02:57]}  Na6 {[%clk 0:02:50]} 11. Nc3 {[%clk 0:02:54]}  Nb4 {[%clk 0:02:29]} 12. Kd2 {[%clk 0:02:40]}  Be6 {[%clk 0:02:29]} 13. a3 {[%clk 0:02:35]}  Nbd5 {[%clk 0:02:29]} 14. Nxd5 {[%clk 0:02:35]}  Nxd5 {[%clk 0:02:30]} 15. Bg3 {[%clk 0:02:33]}  Rfc8 {[%clk 0:02:26]} 16. Rhc1 {[%clk 0:02:06]}  Rxc1 {[%clk 0:01:59]} 17. Rxc1 {[%clk 0:02:06]}  Rc8 {[%clk 0:02:00]} 18. Rxc8+ {[%clk 0:02:05]}  Bxc8 {[%clk 0:02:01]} 19. Kc2 {[%clk 0:01:47]}  Bd7 {[%clk 0:01:57]} 20. Nd2 {[%clk 0:01:43]}  f5 {[%clk 0:01:53]} 21. Bc4 {[%clk 0:01:24]}  Bc6 {[%clk 0:01:44]} 22. Kd3 {[%clk 0:01:12]}  Kf8 {[%clk 0:01:42]} 23. f3 {[%clk 0:01:10]}  Bh6 {[%clk 0:01:33]} 24. Bf2 {[%clk 0:01:05]}  e5 {[%clk 0:01:16]} 25. Bxd5 {[%clk 0:00:49]}  Bxd5 {[%clk 0:01:15]} 26. dxe5 {[%clk 0:00:50]}  dxe5 {[%clk 0:01:14]} 27. e4 {[%clk 0:00:51]}  fxe4+ {[%clk 0:01:06]} 28. fxe4 {[%clk 0:00:39]}  Be6 {[%clk 0:01:00]} 29. Nc4 {[%clk 0:00:32]}  b5 {[%clk 0:00:50]} 30. Nd6 {[%clk 0:00:31]}  Ke7 {[%clk 0:00:50]} 31. Nxb5 {[%clk 0:00:29]}  Bc1 {[%clk 0:00:48]} 32. Kc2 {[%clk 0:00:22]}  Bg5 {[%clk 0:00:47]} 33. b3 {[%clk 0:00:19]}  Bd7 {[%clk 0:00:46]} 34. Nc3 {[%clk 0:00:18]}  Kd6 {[%clk 0:00:43]} 35. Kd3 {[%clk 0:00:15]}  b5 {[%clk 0:00:41]} 36. a4 {[%clk 0:00:07]}  bxa4 {[%clk 0:00:42]} 37. bxa4 {[%clk 0:00:07]}  Bc8 {[%clk 0:00:37]} 38. Kc4 {[%clk 0:00:06]}  Kc6 {[%clk 0:00:27]} 39. Nb5 {[%clk 0:00:05]}  Ba6 {[%clk 0:00:24]} 40. Bc5 {[%clk 0:00:05]}  Bh4 {[%clk 0:00:20]} 41. Bf8 {[%clk 0:00:05]}  Bg5 {[%clk 0:00:20]} 42. Bg7 {[%clk 0:00:05]}  Bf4 {[%clk 0:00:17]} 43. Bf6 {[%clk 0:00:05]}  Bg3 {[%clk 0:00:14]} 44. Bg5 {[%clk 0:00:06]}  Bh2 {[%clk 0:00:12]} 45. Kb4 {[%clk 0:00:05]}  Bg3 {[%clk 0:00:10]} 46. Ka5 {[%clk 0:00:05]}  Bb7 {[%clk 0:00:11]} 47. Bd2 {[%clk 0:00:06]}  Bf2 {[%clk 0:00:10]} 48. Nc3 {[%clk 0:00:05]}  Bb6+ {[%clk 0:00:10]} 49. Kb4 {[%clk 0:00:05]}  Bc5+ {[%clk 0:00:10]} 50. Kc4 {[%clk 0:00:06]}  Bd4 {[%clk 0:00:09]} 51. Nb5 {[%clk 0:00:06]}  Bg1 {[%clk 0:00:08]} 52. Bc3 {[%clk 0:00:06]}  Bh2 {[%clk 0:00:07]} 53. Bb4 {[%clk 0:00:06]}  Bf4 {[%clk 0:00:07]} 54. Bc5 {[%clk 0:00:06]}  Bd2 {[%clk 0:00:07]} 55. Bf2 {[%clk 0:00:06]}  Bf4 {[%clk 0:00:07]} 56. Bg1 {[%clk 0:00:06]}  Bg3 {[%clk 0:00:06]} 57. Be3 {[%clk 0:00:06]}  Bh2 {[%clk 0:00:06]} 58. Kd3 {[%clk 0:00:06]}  Ba6 {[%clk 0:00:05]} 59. Kc4 {[%clk 0:00:05]}  Bg3 {[%clk 0:00:05]} 60. Bg5 {[%clk 0:00:04]}  Bh2 {[%clk 0:00:05]} 61. Kb4 {[%clk 0:00:04]}  Bg3 {[%clk 0:00:05]} 62. Bd2 {[%clk 0:00:03]}  Bb7 {[%clk 0:00:05]} 63. Bc3 {[%clk 0:00:03]}  Bf4 {[%clk 0:00:04]} 64. Kc4 {[%clk 0:00:03]}  Ba6 {[%clk 0:00:03]} 65. Bb2 {[%clk 0:00:03]}  Bg3 {[%clk 0:00:03]} 66. Bc1 {[%clk 0:00:04]}  Bh2 {[%clk 0:00:03]} 67. Be3 {[%clk 0:00:03]}  Bg3 {[%clk 0:00:03]} 68. Kb4 {[%clk 0:00:03]}  Be1+ {[%clk 0:00:03]} 69. Kb3 {[%clk 0:00:03]}  Bg3 {[%clk 0:00:04]} 70. Kc4 {[%clk 0:00:03]}  Bh2 {[%clk 0:00:03]} 71. g4 {[%clk 0:00:03]}  Bg3 {[%clk 0:00:03]} 72. Bg5 {[%clk 0:00:04]}  Bh2 {[%clk 0:00:03]} 73. Bf6 {[%clk 0:00:04]}  Bg3 {[%clk 0:00:03]} 74. Kb4 {[%clk 0:00:04]}  Be1+ {[%clk 0:00:03]} 75. Kc4 {[%clk 0:00:04]}  Bg3 {[%clk 0:00:04]} 76. Bg7 {[%clk 0:00:05]}  Bf4 {[%clk 0:00:04]} 77. Bf8 {[%clk 0:00:05]}  Bg3 {[%clk 0:00:04]} 78. Bb4 {[%clk 0:00:05]}  Bf4 {[%clk 0:00:04]} 79. Be1 {[%clk 0:00:05]}  Bh2 {[%clk 0:00:04]} 80. Bd2 {[%clk 0:00:06]}  Bg3 {[%clk 0:00:03]} 81. Kb4 {[%clk 0:00:06]}  Bh2 {[%clk 0:00:03]} 82. Ka5 {[%clk 0:00:06]}  Bb7 {[%clk 0:00:03]} 83. Nc3 {[%clk 0:00:06]}  Bg1 {[%clk 0:00:04]} 84. Nd5 {[%clk 0:00:06]}  Bb6+ {[%clk 0:00:04]} 85. Nxb6 {[%clk 0:00:06]} 1-0


[Site "https://www.chess.com"]

[Event "Titled Tuesday Blitz November 01 Early 2022"]
[White "Palacio,Igor Da Paz"]
[Black "Kaplan, Ebru"]
[WhiteFideId "2121140"]
[BlackFideId "6315194"]
[WhiteElo "2126"]
[BlackElo "1941"]
[Result "1-0"]
[Round "07"]
[TimeControl "180+1"]
[Date "2022.11.02"]
[WhiteClock "0:00:12"]
[BlackClock "0:00:46"]

1. e4 {[%clk 0:03:00]}  c5 {[%clk 0:02:59]} 2. Nc3 {[%clk 0:02:59]}  d6 {[%clk 0:03:00]} 3. g3 {[%clk 0:03:00]}  g6 {[%clk 0:03:00]} 4. Bg2 {[%clk 0:03:00]}  Bg7 {[%clk 0:03:00]} 5. d3 {[%clk 0:03:00]}  Nc6 {[%clk 0:03:00]} 6. f4 {[%clk 0:03:00]}  Nf6 {[%clk 0:02:59]} 7. Nf3 {[%clk 0:02:59]}  e6 {[%clk 0:02:59]} 8. O-O {[%clk 0:02:58]}  Rb8 {[%clk 0:02:59]} 9. a4 {[%clk 0:02:55]}  a6 {[%clk 0:02:57]} 10. h3 {[%clk 0:02:53]}  O-O {[%clk 0:02:56]} 11. g4 {[%clk 0:02:52]}  b5 {[%clk 0:02:56]} 12. axb5 {[%clk 0:02:51]}  axb5 {[%clk 0:02:57]} 13. Be3 {[%clk 0:02:49]}  b4 {[%clk 0:02:56]} 14. Ne2 {[%clk 0:02:48]}  Qb6 {[%clk 0:02:50]} 15. Rb1 {[%clk 0:02:45]}  b3 {[%clk 0:02:48]} 16. c3 {[%clk 0:02:41]}  Ra8 {[%clk 0:02:41]} 17. Nd2 {[%clk 0:02:35]}  Rb8 {[%clk 0:02:31]} 18. Nc1 {[%clk 0:02:20]}  Na5 {[%clk 0:02:30]} 19. Ra1 {[%clk 0:02:13]}  Ba6 {[%clk 0:02:22]} 20. Rf2 {[%clk 0:01:55]}  Qb5 {[%clk 0:02:10]} 21. Bf1 {[%clk 0:01:54]}  d5 {[%clk 0:02:04]} 22. e5 {[%clk 0:01:29]}  Nd7 {[%clk 0:01:59]} 23. Ncxb3 {[%clk 0:01:23]}  Nxb3 {[%clk 0:01:54]} 24. Qxb3 {[%clk 0:01:20]}  Qc6 {[%clk 0:01:44]} 25. Qa3 {[%clk 0:01:15]}  Ra8 {[%clk 0:01:39]} 26. Qb3 {[%clk 0:00:59]}  Bc4 {[%clk 0:01:31]} 27. Qd1 {[%clk 0:00:56]}  Rxa1 {[%clk 0:01:25]} 28. Qxa1 {[%clk 0:00:57]}  Ra8 {[%clk 0:01:26]} 29. Qb1 {[%clk 0:00:54]}  Ba2 {[%clk 0:01:24]} 30. Qc1 {[%clk 0:00:53]}  f6 {[%clk 0:01:18]} 31. d4 {[%clk 0:00:47]}  c4 {[%clk 0:01:14]} 32. Bg2 {[%clk 0:00:40]}  Qb5 {[%clk 0:01:07]} 33. Qc2 {[%clk 0:00:34]}  Rb8 {[%clk 0:01:05]} 34. Nf3 {[%clk 0:00:32]}  Nb6 {[%clk 0:01:02]} 35. Bc1 {[%clk 0:00:28]}  f5 {[%clk 0:00:59]} 36. Ng5 {[%clk 0:00:22]}  Re8 {[%clk 0:00:54]} 37. gxf5 {[%clk 0:00:21]}  gxf5 {[%clk 0:00:55]} 38. Bf3 {[%clk 0:00:20]}  Na4 {[%clk 0:00:53]} 39. Bh5 {[%clk 0:00:18]}  Re7 {[%clk 0:00:52]} 40. Rg2 {[%clk 0:00:16]}  Kh8 {[%clk 0:00:51]} 41. Nf7+ {[%clk 0:00:16]}  Kg8 {[%clk 0:00:51]} 42. Nd6 {[%clk 0:00:14]}  Qb6 {[%clk 0:00:48]} 43. Qxa4 {[%clk 0:00:13]}  Bb3 {[%clk 0:00:46]} 44. Qa8+ {[%clk 0:00:12]} 1-0


[Site "https://www.chess.com"]

[Event "Titled Tuesday Blitz November 01 Early 2022"]
[White "Paravyan, David"]
[Black "Dominguez Perez, Leinier"]
[WhiteFideId "4194985"]
[BlackFideId "3503240"]
[WhiteElo "2555"]
[BlackElo "2647"]
[Result "1-0"]
[Round "07"]
[TimeControl "180+1"]
[Date "2022.11.01"]
[WhiteClock "0:00:24"]
[BlackClock "0:00:06"]

1. e4 {[%clk 0:03:00]}  c5 {[%clk 0:02:59]} 2. Nf3 {[%clk 0:03:01]}  d6 {[%clk 0:03:00]} 3. d4 {[%clk 0:03:02]}  cxd4 {[%clk 0:03:00]} 4. Nxd4 {[%clk 0:03:02]}  Nf6 {[%clk 0:03:01]} 5. Nc3 {[%clk 0:03:03]}  a6 {[%clk 0:03:02]} 6. Bg5 {[%clk 0:03:04]}  Nbd7 {[%clk 0:03:02]} 7. a3 {[%clk 0:03:02]}  Qc7 {[%clk 0:02:51]} 8. Qd2 {[%clk 0:03:01]}  b5 {[%clk 0:02:49]} 9. O-O-O {[%clk 0:02:25]}  Bb7 {[%clk 0:02:48]} 10. f3 {[%clk 0:02:25]}  h6 {[%clk 0:02:28]} 11. Be3 {[%clk 0:02:25]}  g6 {[%clk 0:02:28]} 12. Kb1 {[%clk 0:02:17]}  Bg7 {[%clk 0:02:28]} 13. h4 {[%clk 0:02:12]}  h5 {[%clk 0:02:22]} 14. Be2 {[%clk 0:02:03]}  Nb6 {[%clk 0:02:20]} 15. Rhe1 {[%clk 0:01:56]}  Nfd7 {[%clk 0:02:16]} 16. Bg5 {[%clk 0:01:52]}  Ne5 {[%clk 0:02:16]} 17. Qc1 {[%clk 0:01:35]}  O-O {[%clk 0:01:35]} 18. Bh6 {[%clk 0:01:34]}  Rac8 {[%clk 0:01:30]} 19. Bxg7 {[%clk 0:01:02]}  Kxg7 {[%clk 0:01:30]} 20. Qg5 {[%clk 0:01:03]}  e6 {[%clk 0:01:20]} 21. f4 {[%clk 0:00:59]}  Nec4 {[%clk 0:01:15]} 22. Bxh5 {[%clk 0:00:50]}  Nxa3+ {[%clk 0:00:47]} 23. Kc1 {[%clk 0:00:48]}  Kh7 {[%clk 0:00:24]} 24. Nxe6 {[%clk 0:00:43]}  fxe6 {[%clk 0:00:12]} 25. Bxg6+ {[%clk 0:00:44]}  Kh8 {[%clk 0:00:12]} 26. Rd3 {[%clk 0:00:29]}  Qg7 {[%clk 0:00:10]} 27. Qh5+ {[%clk 0:00:28]}  Kg8 {[%clk 0:00:09]} 28. Rg3 {[%clk 0:00:29]}  Rxc3 {[%clk 0:00:08]} 29. Bh7+ {[%clk 0:00:27]}  Kh8 {[%clk 0:00:08]} 30. Bf5+ {[%clk 0:00:24]}  Kg8 {[%clk 0:00:06]} 31. Qh7+ {[%clk 0:00:24]} 1-0


[Site "https://www.chess.com"]

[Event "Titled Tuesday Blitz November 01 Early 2022"]
[White "Parligras, Mircea-Emilian"]
[Black "Martinez Alcantara, Jose Eduardo"]
[WhiteFideId "1204297"]
[BlackFideId "3805662"]
[WhiteElo "2507"]
[BlackElo "2703"]
[Result "0-1"]
[Round "07"]
[TimeControl "180+1"]
[Date "2022.11.01"]
[WhiteClock "0:00:14"]
[BlackClock "0:01:43"]

1. d4 {[%clk 0:03:00]}  c5 {[%clk 0:03:00]} 2. d5 {[%clk 0:03:00]}  d6 {[%clk 0:03:01]} 3. e4 {[%clk 0:02:59]}  Nf6 {[%clk 0:03:00]} 4. Nc3 {[%clk 0:02:59]}  e5 {[%clk 0:03:01]} 5. Bb5+ {[%clk 0:02:51]}  Nbd7 {[%clk 0:03:01]} 6. a4 {[%clk 0:02:51]}  Be7 {[%clk 0:03:01]} 7. Nf3 {[%clk 0:02:50]}  O-O {[%clk 0:03:02]} 8. O-O {[%clk 0:02:47]}  Ne8 {[%clk 0:03:03]} 9. Bd3 {[%clk 0:02:41]}  g6 {[%clk 0:03:02]} 10. Nd2 {[%clk 0:02:35]}  Ng7 {[%clk 0:03:02]} 11. Nc4 {[%clk 0:02:36]}  f5 {[%clk 0:03:02]} 12. f4 {[%clk 0:02:31]}  Kh8 {[%clk 0:02:37]} 13. Bd2 {[%clk 0:02:09]}  a6 {[%clk 0:02:27]} 14. a5 {[%clk 0:02:05]}  Rb8 {[%clk 0:02:27]} 15. Qe2 {[%clk 0:01:58]}  b5 {[%clk 0:02:06]} 16. axb6 {[%clk 0:01:57]}  Nxb6 {[%clk 0:02:07]} 17. Na5 {[%clk 0:01:32]}  Bd7 {[%clk 0:02:07]} 18. fxe5 {[%clk 0:01:31]}  dxe5 {[%clk 0:02:08]} 19. exf5 {[%clk 0:01:31]}  gxf5 {[%clk 0:02:02]} 20. Qxe5 {[%clk 0:01:28]}  Bf6 {[%clk 0:02:02]} 21. Qg3 {[%clk 0:01:15]}  Bd4+ {[%clk 0:02:03]} 22. Kh1 {[%clk 0:01:12]}  Qf6 {[%clk 0:02:04]} 23. Nc6 {[%clk 0:01:05]}  Bxc6 {[%clk 0:02:04]} 24. dxc6 {[%clk 0:01:05]}  Qxc6 {[%clk 0:02:04]} 25. Rxa6 {[%clk 0:01:03]}  Qb7 {[%clk 0:02:05]} 26. Rfa1 {[%clk 0:00:59]}  Rg8 {[%clk 0:02:05]} 27. Ra7 {[%clk 0:00:58]}  Qc6 {[%clk 0:02:06]} 28. Qh3 {[%clk 0:00:51]}  Rbf8 {[%clk 0:02:06]} 29. Re1 {[%clk 0:00:40]}  c4 {[%clk 0:02:07]} 30. Bf1 {[%clk 0:00:37]}  Nd5 {[%clk 0:02:07]} 31. Raa1 {[%clk 0:00:30]}  Nf6 {[%clk 0:02:05]} 32. Qf3 {[%clk 0:00:25]}  Qc5 {[%clk 0:02:05]} 33. Ra6 {[%clk 0:00:22]}  Ng4 {[%clk 0:02:05]} 34. Nd1 {[%clk 0:00:20]}  Nh5 {[%clk 0:01:49]} 35. Bc3 {[%clk 0:00:18]}  Rd8 {[%clk 0:01:48]} 36. Bxd4+ {[%clk 0:00:18]}  Qxd4 {[%clk 0:01:48]} 37. Qc3 {[%clk 0:00:16]}  Qxc3 {[%clk 0:01:47]} 38. Nxc3 {[%clk 0:00:17]}  Rd2 {[%clk 0:01:48]} 39. Bxc4 {[%clk 0:00:16]}  Nf2+ {[%clk 0:01:43]} 40. Kg1 {[%clk 0:00:16]}  Nh3+ {[%clk 0:01:43]} 41. Kf1 {[%clk 0:00:14]}  Rf2# {[%clk 0:01:43]} 0-1


[Site "https://www.chess.com"]

[Event "Titled Tuesday Blitz November 01 Early 2022"]
[White "Pham, Khoi"]
[Black "Pinheiro, Iung Alicio de O."]
[WhiteFideId "1054988"]
[BlackFideId "2104350"]
[WhiteElo "2477"]
[BlackElo "2283"]
[Result "0-1"]
[Round "07"]
[TimeControl "180+1"]
[Date "2022.11.02"]
[WhiteClock "0:00:02"]
[BlackClock "0:00:14"]

1. e4 {[%clk 0:03:00]}  c5 {[%clk 0:02:59]} 2. Nf3 {[%clk 0:03:00]}  Nc6 {[%clk 0:02:59]} 3. d4 {[%clk 0:02:58]}  cxd4 {[%clk 0:02:58]} 4. Nxd4 {[%clk 0:02:59]}  e5 {[%clk 0:02:59]} 5. Nb5 {[%clk 0:02:58]}  d6 {[%clk 0:02:59]} 6. Be2 {[%clk 0:02:55]}  Be7 {[%clk 0:02:46]} 7. O-O {[%clk 0:02:52]}  Nf6 {[%clk 0:02:43]} 8. N1c3 {[%clk 0:02:50]}  a6 {[%clk 0:02:41]} 9. Na3 {[%clk 0:02:49]}  b5 {[%clk 0:02:39]} 10. Nd5 {[%clk 0:02:50]}  Nxe4 {[%clk 0:02:13]} 11. c4 {[%clk 0:02:48]}  b4 {[%clk 0:02:05]} 12. Nc2 {[%clk 0:02:47]}  Rb8 {[%clk 0:02:04]} 13. Bf3 {[%clk 0:02:40]}  Nc5 {[%clk 0:01:47]} 14. a3 {[%clk 0:02:25]}  a5 {[%clk 0:01:33]} 15. axb4 {[%clk 0:02:24]}  axb4 {[%clk 0:01:34]} 16. Bd2 {[%clk 0:02:19]}  b3 {[%clk 0:01:33]} 17. Ncb4 {[%clk 0:02:15]}  Nd4 {[%clk 0:01:12]} 18. Bc3 {[%clk 0:02:03]}  Nxf3+ {[%clk 0:01:09]} 19. Qxf3 {[%clk 0:02:04]}  Bb7 {[%clk 0:01:10]} 20. Rad1 {[%clk 0:01:58]}  O-O {[%clk 0:01:09]} 21. Rfe1 {[%clk 0:01:56]}  Bg5 {[%clk 0:01:05]} 22. g3 {[%clk 0:01:42]}  Kh8 {[%clk 0:01:04]} 23. h4 {[%clk 0:01:41]}  Bh6 {[%clk 0:01:04]} 24. Qe2 {[%clk 0:01:30]}  Qd7 {[%clk 0:00:57]} 25. Ne3 {[%clk 0:00:48]}  Bxe3 {[%clk 0:00:43]} 26. Qxe3 {[%clk 0:00:49]}  Qh3 {[%clk 0:00:43]} 27. Nd5 {[%clk 0:00:45]}  Rbe8 {[%clk 0:00:34]} 28. Bb4 {[%clk 0:00:42]}  f5 {[%clk 0:00:28]} 29. Bxc5 {[%clk 0:00:36]}  dxc5 {[%clk 0:00:28]} 30. Qxc5 {[%clk 0:00:37]}  f4 {[%clk 0:00:27]} 31. gxf4 {[%clk 0:00:06]}  Bxd5 {[%clk 0:00:17]} 32. Rxd5 {[%clk 0:00:04]}  Rxf4 {[%clk 0:00:16]} 33. f3 {[%clk 0:00:04]}  Rxf3 {[%clk 0:00:15]} 34. Re2 {[%clk 0:00:02]}  Rf1# {[%clk 0:00:14]} 0-1


[Site "https://www.chess.com"]